fUSD/lending_fUSD_20250526
["ID","MTS","AMOUNT","RATE_DAILY","PERIOD"]
[362396680,1748249450881,-420.0,0.00019999,2]
[362396681,1748249450890,-248.65,0.00019999,2]
[362396682,1748249450900,-420.0,0.00019999,2]
[362396683,1748249450909,-420.0,0.00019999,2]
[362396684,1748249450925,-420.0,0.00019999,2]
[362396685,1748249450935,-285.06,0.00019999,2]
[362396686,1748249450944,-1154.6,0.00019999,2]
[362396687,1748249450955,-1154.6,0.00019999,2]
[362396688,1748249450965,-1154.6,0.00019999,2]
[362396689,1748249450974,-1154.6,0.00019999,2]
[362396690,1748249450984,-1154.6,0.00019999,2]
[362396691,1748249450995,-1154.6,0.00019999,2]
[362396692,1748249451005,-1154.6,0.00019999,2]
[362396693,1748249451016,-1154.6,0.00019999,2]
[362396694,1748249451025,-1154.6,0.00019999,2]
[362396695,1748249451035,-1154.6,0.00019999,2]
[362396696,1748249451045,-1154.6,0.00019999,2]
[362396697,1748249451056,-1154.6,0.00019999,2]
[362396698,1748249451066,-1154.6,0.00019999,2]
[362396699,1748249451077,-1154.6,0.00019999,2]
[362396700,1748249451088,-1154.6,0.00019999,2]
[362396701,1748249451099,-1154.6,0.00019999,2]
[362396702,1748249451109,-1154.6,0.00019999,2]
[362396703,1748249451119,-1154.6,0.00019999,2]
[362396704,1748249451130,-1154.6,0.00019999,2]
[362396705,1748249451139,-1154.6,0.00019999,2]
[362396706,1748249451149,-1154.6,0.00019999,2]
[362396707,1748249451159,-1154.8342,0.00019999,2]
[362396708,1748249451170,-420.0,0.00019999,2]
[362396709,1748249451180,-420.0,0.00019999,2]
[362396710,1748249451189,-420.0,0.00019999,2]
[362396711,1748249451199,-420.0,0.00019999,2]
[362396712,1748249451209,-420.0,0.00019999,2]
[362396713,1748249451219,-420.0,0.00019999,2]
[362396714,1748249451229,-420.0,0.00019999,2]
[362396715,1748249451238,-420.0,0.00019999,2]
[362396716,1748249451249,-420.0,0.00019999,2]
[362396717,1748249451260,-420.0,0.00019999,2]
[362396718,1748249451269,-420.0,0.00019999,2]
[362396719,1748249451278,-420.0,0.00019999,2]
[362396720,1748249451288,-420.0,0.00019999,2]
[362396721,1748249451299,-420.0,0.00019999,2]
[362396722,1748249451309,-420.0,0.00019999,2]
[362396723,1748249451319,-420.0,0.00019999,2]
[362396724,1748249451330,-420.0,0.00019999,2]
[362396725,1748249451340,-420.0,0.00019999,2]
[362396726,1748249451350,-420.0,0.00019999,2]
[362396727,1748249451359,-420.0,0.00019999,2]
[362396728,1748249451369,-420.0,0.00019999,2]
[362396729,1748249451379,-173.14,0.00019999,2]
[362396730,1748249451390,-551.06,0.00019999,2]
[362396731,1748249451401,-551.06,0.00019999,2]
[362396732,1748249451410,-551.06,0.00019999,2]
[362396733,1748249451421,-551.06,0.00019999,2]
[362396734,1748249451431,-551.06,0.00019999,2]
[362396735,1748249451441,-551.06,0.00019999,2]
[362396736,1748249451452,-551.06,0.00019999,2]
[362396737,1748249451462,-420.0,0.00019999,2]
[362396738,1748249451472,-551.06,0.00019999,2]
[362396739,1748249451482,-420.0,0.00019999,2]
[362396740,1748249451492,-420.0,0.00019999,2]
[362396741,1748249451502,-551.06,0.00019999,2]
[362396742,1748249451512,-274.67,0.00019999,2]
[362396743,1748249451523,-551.06,0.00019999,2]
[362396744,1748249451533,-420.0,0.00019999,2]
[362396745,1748249451542,-420.0,0.00019999,2]
[362396746,1748249451552,-551.06,0.00019999,2]
[362396747,1748249451562,-420.0,0.00019999,2]
[362396748,1748249451572,-551.06,0.00019999,2]
[362396749,1748249451581,-420.0,0.00019999,2]
[362396750,1748249451591,-551.06,0.00019999,2]
[362396751,1748249451601,-420.0,0.00019999,2]
[362396752,1748249451611,-551.06,0.00019999,2]
[362396753,1748249451620,-420.0,0.00019999,2]
[362396754,1748249451629,-551.06,0.00019999,2]
[362396755,1748249451638,-445.71,0.00019999,2]
[362396756,1748249451648,-551.06,0.00019999,2]
[362396757,1748249451700,-551.06,0.00019999,2]
[362396758,1748249451710,-551.06,0.00019999,2]
[362396759,1748249451720,-551.06,0.00019999,2]
[362396760,1748249451729,-551.06,0.00019999,2]
[362396761,1748249451738,-551.12,0.00019999,2]
[362396762,1748249451747,-465.06,0.00019999,2]
[362396763,1748249451757,-465.06,0.00019999,2]
[362396764,1748249451767,-465.06,0.00019999,2]
[362396765,1748249451776,-465.06,0.00019999,2]
[362396766,1748249451785,-465.06,0.00019999,2]
[362396767,1748249451795,-465.06,0.00019999,2]
[362396768,1748249451804,-465.06,0.00019999,2]
[362396769,1748249451814,-465.06,0.00019999,2]
[362396770,1748249451823,-465.06,0.00019999,2]
[362396771,1748249451833,-465.06,0.00019999,2]
[362396772,1748249451842,-465.06,0.00019999,2]
[362396773,1748249451851,-465.06,0.00019999,2]
[362396774,1748249451861,-465.06,0.00019999,2]
[362396775,1748249451870,-465.06,0.00019999,2]
[362396776,1748249451880,-465.06,0.00019999,2]
[362396777,1748249451889,-465.06,0.00019999,2]
[362396778,1748249451899,-465.06,0.00019999,2]
[362396779,1748249451908,-465.06,0.00019999,2]
[362396780,1748249451922,-465.06,0.00019999,2]
[362396781,1748249451932,-465.06,0.00019999,2]
[362396782,1748249451941,-465.06,0.00019999,2]
[362396783,1748249451951,-465.23,0.00019999,2]
[362396784,1748249451961,-914.14,0.00019999,2]
[362396785,1748249451970,-914.14,0.00019999,2]
[362396786,1748249451980,-914.14,0.00019999,2]
[362396787,1748249451990,-914.14,0.00019999,2]
[362396788,1748249451999,-914.14,0.00019999,2]
[362396789,1748249452009,-914.14,0.00019999,2]
[362396790,1748249452019,-914.14,0.00019999,2]
[362396791,1748249452029,-914.14,0.00019999,2]
[362396792,1748249452039,-914.14,0.00019999,2]
[362396793,1748249452048,-914.14,0.00019999,2]
[362396794,1748249452057,-914.14,0.00019999,2]
[362396795,1748249452067,-914.14,0.00019999,2]
[362396796,1748249452076,-914.14,0.00019999,2]
[362396797,1748249452086,-914.14,0.00019999,2]
[362396798,1748249452095,-914.14,0.00019999,2]
[362396799,1748249452105,-914.14,0.00019999,2]
[362396800,1748249452115,-914.14,0.00019999,2]
[362396801,1748249452124,-914.14,0.00019999,2]
[362396802,1748249452134,-914.14,0.00019999,2]
[362396803,1748249452144,-914.14,0.00019999,2]
[362396804,1748249452153,-914.14,0.00019999,2]
[362396805,1748249452163,-914.21,0.00019999,2]
[362396806,1748249452172,-420.0,0.00019999,2]
[362396807,1748249452181,-420.0,0.00019999,2]
[362396808,1748249452191,-420.0,0.00019999,2]
[362396809,1748249452200,-420.0,0.00019999,2]
[362396810,1748249452209,-425.25,0.00019999,2]
[362396811,1748249452218,-416.29283206,0.00019999,2]
[362396812,1748249452228,-420.0,0.00019999,2]
[362396813,1748249452239,-420.0,0.00019999,2]
[362396814,1748249452248,-420.0,0.00019999,2]
[362396815,1748249452258,-310.49,0.00019999,2]
[362396816,1748249452267,-420.0,0.00019999,2]
[362396817,1748249452277,-378.49494986,0.00019999,2]
[362396818,1748249452286,-420.0,0.00019999,2]
[362396819,1748249452295,-420.0,0.00019999,2]
[362396820,1748249452304,-420.0,0.00019999,2]
[362396821,1748249452315,-420.0,0.00019999,2]
[362396822,1748249452325,-420.0,0.00019999,2]
[362396823,1748249452334,-420.0,0.00019999,2]
[362396824,1748249452344,-357.54372376,0.00019999,2]
[362396825,1748249452353,-488.79643901,0.00019999,2]
[362396826,1748249452363,-157.64,0.00019999,2]
[362396827,1748249452372,-505.02,0.00019999,2]
[362396828,1748249452382,-420.0,0.00019999,2]
[362396829,1748249452390,-420.0,0.00019999,2]
[362396830,1748249452400,-420.0,0.00019999,2]
[362396831,1748249452410,-420.0,0.00019999,2]
[362396832,1748249452419,-157.83366682,0.00019999,2]
[362396833,1748249452428,-420.0,0.00019999,2]
[362396834,1748249452439,-420.0,0.00019999,2]
[362396835,1748249452448,-420.0,0.00019999,2]
[362396836,1748249452458,-178.21,0.00019999,2]
[362396837,1748249452468,-420.0,0.00019999,2]
[362396838,1748249452478,-420.0,0.00019999,2]
[362396839,1748249452487,-420.0,0.00019999,2]
[362396840,1748249452497,-300.51,0.00019999,2]
[362396841,1748249452506,-476179.72861291,0.0002,2]
[362396842,1748249452521,-7800.0,0.0002,2]
[362396843,1748249452691,-174371.48402782,0.0002,2]
[362396844,1748249452702,-384.09141926,0.0002,2]
[362396845,1748249452713,-1425.59731421,0.0002,2]
[362396846,1748249452724,-15105.07557424,0.0002,2]
[362396847,1748249452735,-25708.27622921,0.0002,2]
[362396848,1748249452747,-3288.6576,0.0002,2]
[362396849,1748249452788,-2887671.59477479,0.0002,2]
[362396850,1748249452799,-614.06943628,0.0002,2]
[362396851,1748249452814,-8199.5360444,0.0002,2]
[362396852,1748249452827,-341.77000004,0.0002,2]
[362396853,1748249452838,-6323.1,0.0002,2]
[362396861,1748249581030,-700.0,0.0002,4]
[362396862,1748249727300,250.0,0.00015,2]
[362396863,1748249743261,-3300.0,0.0002,4]
[362396864,1748249758788,-5000.0,0.0002,3]
[362396865,1748249765326,-5000.0,0.0002,3]
[362396866,1748249766428,-5000.0,0.0002,3]
[362396867,1748249767479,-5000.0,0.0002,3]
[362396868,1748249774043,1700.0,0.0002,5]
[362396869,1748249775033,-2500.0,0.0002,3]
[362396870,1748249776280,-2500.0,0.0002,3]
[362396871,1748249864481,-1828.0,0.000198,5]
[362396872,1748250188692,14977.755939,7.945e-05,2]
[362396873,1748250260370,4176.7,0.000165,2]
[362396874,1748250419113,-288.07369692,0.00017,2]
[362396875,1748250430710,201.89,0.00013699,2]
[362396882,1748250632192,-819.4,0.00016911,2]
[362396883,1748250632202,-11.92630308,0.00017,2]
[362396884,1748250632212,-1200.0,0.00018599,2]
[362396885,1748250632221,-2322.07641814,0.000186,2]
[362396886,1748250632299,-1555.3552193,0.000186,2]
[362396887,1748250632353,-4396.35944764,0.000186,2]
[362396888,1748250632365,-5764.83045,0.000186,2]
[362396889,1748250632377,-3569.541012,0.000186,2]
[362396890,1748250632389,-4108.43745292,0.000186,2]
[362396891,1748250632398,-502.0,0.0001863,2]
[362396892,1748250632409,-250.0,0.000187,2]
[362396893,1748250632420,-2559.53780708,0.00018731,2]
[362396894,1748250632431,-1366.36535,0.00018731,2]
[362396895,1748250632444,-1171.38146681,0.00018731,2]
[362396896,1748250632456,-501.84968142,0.00018731,2]
[362396897,1748250632468,-522.63906166,0.00018731,2]
[362396898,1748250632480,-308.79,0.00018731,2]
[362396899,1748250632492,-2537.85000536,0.00018731,2]
[362396900,1748250632503,-3637.27719673,0.00018731,2]
[362396901,1748250632517,-1452.0,0.00018731,2]
[362397051,1748250638185,-9842.30943094,0.00018731,2]
[362397052,1748250638199,-300.0,0.00018899,2]
[362397053,1748250638209,-408.59272046,0.000189,2]
[362397054,1748250638221,-150.0,0.00018915,7]
[362397055,1748250638231,-180.27,0.00018958,2]
[362397056,1748250638240,-350.0,0.00019,2]
[362397057,1748250638249,-250.55,0.00019136,2]
[362397058,1748250638259,-819.4,0.00019175,2]
[362397059,1748250638268,-186.379405,0.00019178,2]
[362397060,1748250638278,-155.316171,0.00019178,2]
[362397061,1748250638290,-154.601241,0.00019178,2]
[362397062,1748250638300,-186.379404,0.00019178,2]
[362397063,1748250638310,-151.0,0.00019178,2]
[362397064,1748250638319,-163.08,0.00019286,2]
[362397065,1748250638331,-1000.0,0.00019423,2]
[362397066,1748250638340,-151.0,0.00019506,2]
[362397067,1748250638349,-151.0,0.00019545,2]
[362397068,1748250638360,-200.0,0.00019618,2]
[362397069,1748250638372,-151.0,0.00019623,2]
[362397070,1748250638382,-170.8208696,0.0001966,2]
[362397071,1748250638394,-7000.0,0.0001966,2]
[362397072,1748250638405,-769.89012244,0.0001966,2]
[362397073,1748250638417,-1434.74809938,0.0001966,2]
[362397074,1748250638427,-156.587,0.00019726,2]
[362397075,1748250638436,-3677.46108121,0.000198,2]
[362397076,1748250638448,-656.67,0.000198,2]
[362397078,1748250638460,-665.86891879,0.000198,2]
[362397080,1748250638470,-186.379405,0.00019899,2]
[362397082,1748250638480,-186.379404,0.00019899,2]
[362397084,1748250638489,-1000.0,0.000199,2]
[362397085,1748250638499,-326.27033496,0.000199,2]
[362397086,1748250638508,-155.09069366,0.000199,2]
[362397087,1748250638518,-183.09242644,0.000199,2]
[362397088,1748250638527,-183.09242643,0.000199,2]
[362397089,1748250638536,-173.21638716,0.000199,2]
[362397090,1748250638545,-539.08829236,0.000199,2]
[362397091,1748250638554,-362.19502142,0.000199,2]
[362397092,1748250638564,-155.316171,0.00019921,2]
[362397094,1748250638573,-185.81773771,0.0001999,2]
[362397096,1748250638582,-186.379405,0.00019993,2]
[362397098,1748250638592,-186.379404,0.00019993,2]
[362397100,1748250638602,-420.0,0.00019997,2]
[362397102,1748250638611,-420.0,0.00019998,2]
[362397105,1748250638621,-1920.176,0.00019998,2]
[362397107,1748250638631,-180.736,0.00019998,2]
[362397108,1748250638640,-500.0,0.00019998,2]
[362397110,1748250638650,-155.316171,0.00019998,2]
[362397111,1748250638660,-420.0,0.00019998,2]
[362397112,1748250638669,-420.0,0.00019998,2]
[362397113,1748250638679,-420.0,0.00019998,2]
[362397114,1748250638688,-420.0,0.00019998,2]
[362397115,1748250638697,-9781.90912499,0.00019999,2]
[362397116,1748250638707,-420.0,0.00019999,2]
[362397117,1748250638716,-420.0,0.00019999,2]
[362397118,1748250638725,-170.04025821,0.00019999,2]
[362397119,1748250638735,-12500.0,0.00019999,2]
[362397120,1748250638746,-420.0,0.00019999,2]
[362397121,1748250638755,-420.0,0.00019999,2]
[362397122,1748250638764,-455.24,0.00019999,2]
[362397123,1748250638775,-420.0,0.00019999,2]
[362397124,1748250638784,-420.0,0.00019999,2]
[362397125,1748250638794,-420.0,0.00019999,2]
[362397126,1748250638804,-420.0,0.00019999,2]
[362397127,1748250638813,-293.19,0.00019999,2]
[362397128,1748250638823,-420.0,0.00019999,2]
[362397129,1748250638833,-446.18,0.00019999,2]
[362397130,1748250638842,-167.6196509,0.00019999,2]
[362397131,1748250638852,-420.0,0.00019999,2]
[362397132,1748250638861,-219.37,0.00019999,2]
[362397133,1748250638871,-420.0,0.00019999,2]
[362397134,1748250638881,-382.20739033,0.00019999,2]
[362397135,1748250638889,-424.22828334,0.00019999,2]
[362397136,1748250638900,-420.0,0.00019999,2]
[362397137,1748250638909,-420.0,0.00019999,2]
[362397138,1748250638919,-315.79459459,0.00019999,2]
[362397139,1748250638929,-420.0,0.00019999,2]
[362397140,1748250638939,-246.84,0.00019999,2]
[362397141,1748250638949,-420.0,0.00019999,2]
[362397142,1748250638958,-153.88,0.00019999,2]
[362397143,1748250638968,-186.379405,0.00019999,2]
[362397144,1748250638977,-286.21,0.00019999,2]
[362397145,1748250638987,-457.11317614,0.00019999,2]
[362397146,1748250638997,-420.0,0.00019999,2]
[362397147,1748250639006,-420.0,0.00019999,2]
[362397148,1748250639016,-420.0,0.00019999,2]
[362397149,1748250639025,-420.0,0.00019999,2]
[362397150,1748250639035,-420.0,0.00019999,2]
[362397151,1748250639045,-340.11532469,0.00019999,2]
[362397152,1748250639055,-409.76,0.00019999,2]
[362397153,1748250639064,-293.92,0.00019999,2]
[362397154,1748250639073,-420.0,0.00019999,2]
[362397155,1748250639083,-420.0,0.00019999,2]
[362397156,1748250639092,-420.0,0.00019999,2]
[362397157,1748250639101,-469.97,0.00019999,2]
[362397158,1748250639110,-420.0,0.00019999,2]
[362397159,1748250639120,-420.0,0.00019999,2]
[362397160,1748250639129,-432.09410796,0.00019999,2]
[362397161,1748250639138,-420.0,0.00019999,2]
[362397162,1748250639148,-420.0,0.00019999,2]
[362397163,1748250639157,-420.0,0.00019999,2]
[362397164,1748250639166,-420.0,0.00019999,2]
[362397165,1748250639176,-420.0,0.00019999,2]
[362397166,1748250639185,-420.0,0.00019999,2]
[362397167,1748250639195,-416.38,0.00019999,2]
[362397168,1748250639204,-495.07,0.00019999,2]
[362397169,1748250639215,-420.0,0.00019999,2]
[362397170,1748250639225,-420.0,0.00019999,2]
[362397171,1748250639234,-420.0,0.00019999,2]
[362397172,1748250639244,-420.0,0.00019999,2]
[362397173,1748250639253,-420.0,0.00019999,2]
[362397174,1748250639263,-420.0,0.00019999,2]
[362397175,1748250639273,-420.0,0.00019999,2]
[362397176,1748250639286,-272.57,0.00019999,2]
[362397177,1748250639295,-420.0,0.00019999,2]
[362397178,1748250639304,-170.36,0.00019999,2]
[362397179,1748250639314,-420.0,0.00019999,2]
[362397180,1748250639324,-420.0,0.00019999,2]
[362397181,1748250639334,-420.0,0.00019999,2]
[362397182,1748250639343,-420.0,0.00019999,2]
[362397183,1748250639353,-420.0,0.00019999,2]
[362397184,1748250639364,-420.0,0.00019999,2]
[362397185,1748250639373,-428.67,0.00019999,2]
[362397186,1748250639383,-426.68719335,0.00019999,2]
[362397187,1748250639392,-420.0,0.00019999,2]
[362397188,1748250639402,-420.0,0.00019999,2]
[362397189,1748250639412,-420.0,0.00019999,2]
[362397190,1748250639421,-455.69943349,0.00019999,2]
[362397191,1748250639431,-420.0,0.00019999,2]
[362397192,1748250639441,-420.0,0.00019999,2]
[362397193,1748250639451,-420.0,0.00019999,2]
[362397194,1748250639461,-1275.7,0.00019999,2]
[362397195,1748250639471,-420.0,0.00019999,2]
[362397196,1748250639481,-1275.7,0.00019999,2]
[362397197,1748250639490,-420.0,0.00019999,2]
[362397198,1748250639499,-420.0,0.00019999,2]
[362397199,1748250639509,-1275.7,0.00019999,2]
[362397200,1748250639519,-420.0,0.00019999,2]
[362397201,1748250639528,-420.0,0.00019999,2]
[362397202,1748250639537,-1275.7,0.00019999,2]
[362397203,1748250639547,-420.0,0.00019999,2]
[362397204,1748250639556,-1275.7,0.00019999,2]
[362397205,1748250639565,-205.6,0.00019999,2]
[362397206,1748250639575,-1275.7,0.00019999,2]
[362397207,1748250639584,-1275.7,0.00019999,2]
[362397208,1748250639593,-1275.7,0.00019999,2]
[362397209,1748250639602,-1275.7,0.00019999,2]
[362397210,1748250639612,-1275.7,0.00019999,2]
[362397211,1748250639621,-1275.7,0.00019999,2]
[362397212,1748250639630,-1275.7,0.00019999,2]
[362397213,1748250639640,-1275.7,0.00019999,2]
[362397214,1748250639649,-1275.7,0.00019999,2]
[362397215,1748250639659,-1275.7,0.00019999,2]
[362397216,1748250639669,-1275.7,0.00019999,2]
[362397217,1748250639679,-1275.7,0.00019999,2]
[362397218,1748250639688,-1275.7,0.00019999,2]
[362397219,1748250639697,-1275.7,0.00019999,2]
[362397220,1748250639706,-1275.7,0.00019999,2]
[362397221,1748250639715,-420.0,0.00019999,2]
[362397222,1748250639724,-423.00577221,0.00019999,2]
[362397223,1748250639734,-1275.7,0.00019999,2]
[362397224,1748250639743,-1275.7,0.00019999,2]
[362397225,1748250639753,-1275.7,0.00019999,2]
[362397226,1748250639763,-1275.78,0.00019999,2]
[362397227,1748250639774,-420.0,0.00019999,2]
[362397228,1748250639784,-420.0,0.00019999,2]
[362397229,1748250639794,-420.0,0.00019999,2]
[362397230,1748250639803,-420.0,0.00019999,2]
[362397231,1748250639813,-420.0,0.00019999,2]
[362397232,1748250639823,-1351.54,0.00019999,2]
[362397233,1748250639833,-233.20726137,0.00019999,2]
[362397234,1748250639842,-1351.54,0.00019999,2]
[362397235,1748250639852,-1351.54,0.00019999,2]
[362397236,1748250639862,-420.0,0.00019999,2]
[362397237,1748250639872,-1351.54,0.00019999,2]
[362397238,1748250639882,-1351.54,0.00019999,2]
[362397239,1748250639891,-420.0,0.00019999,2]
[362397240,1748250639901,-1351.54,0.00019999,2]
[362397242,1748250639911,-420.0,0.00019999,2]
[362397243,1748250639920,-1351.54,0.00019999,2]
[362397244,1748250639930,-1351.54,0.00019999,2]
[362397245,1748250639939,-1351.54,0.00019999,2]
[362397246,1748250639949,-1351.54,0.00019999,2]
[362397247,1748250639958,-1351.54,0.00019999,2]
[362397248,1748250639972,-420.0,0.00019999,2]
[362397250,1748250639982,-1351.54,0.00019999,2]
[362397251,1748250639992,-420.0,0.00019999,2]
[362397253,1748250640002,-1351.54,0.00019999,2]
[362397254,1748250640011,-1351.54,0.00019999,2]
[362397255,1748250640021,-422.59893218,0.00019999,2]
[362397256,1748250640032,-1351.54,0.00019999,2]
[362397257,1748250640041,-1351.54,0.00019999,2]
[362397258,1748250640051,-1351.54,0.00019999,2]
[362397259,1748250640060,-1351.54,0.00019999,2]
[362397260,1748250640069,-1351.54,0.00019999,2]
[362397261,1748250640079,-1351.54,0.00019999,2]
[362397262,1748250640088,-1351.54,0.00019999,2]
[362397264,1748250640098,-420.0,0.00019999,2]
[362397266,1748250640107,-1351.54,0.00019999,2]
[362397268,1748250640117,-420.0,0.00019999,2]
[362397270,1748250640126,-1351.54,0.00019999,2]
[362397271,1748250640136,-163.42968441,0.00019999,2]
[362397273,1748250640146,-1351.7,0.00019999,2]
[362397274,1748250640156,-484.51,0.00019999,2]
[362397275,1748250640165,-420.0,0.00019999,2]
[362397276,1748250640175,-420.0,0.00019999,2]
[362397277,1748250640184,-420.0,0.00019999,2]
[362397279,1748250640193,-420.0,0.00019999,2]
[362397280,1748250640203,-420.0,0.00019999,2]
[362397281,1748250640212,-420.0,0.00019999,2]
[362397282,1748250640221,-420.0,0.00019999,2]
[362397283,1748250640231,-420.0,0.00019999,2]
[362397284,1748250640241,-420.0,0.00019999,2]
[362397285,1748250640251,-420.0,0.00019999,2]
[362397286,1748250640261,-420.0,0.00019999,2]
[362397287,1748250640270,-420.0,0.00019999,2]
[362397288,1748250640282,-420.0,0.00019999,2]
[362397289,1748250640291,-378.36,0.00019999,2]
[362397290,1748250640301,-420.0,0.00019999,2]
[362397291,1748250640310,-420.0,0.00019999,2]
[362397292,1748250640320,-420.0,0.00019999,2]
[362397293,1748250640331,-420.0,0.00019999,2]
[362397294,1748250640340,-420.0,0.00019999,2]
[362397295,1748250640350,-420.0,0.00019999,2]
[362397296,1748250640360,-192.67,0.00019999,2]
[362397297,1748250640369,-420.0,0.00019999,2]
[362397298,1748250640379,-420.0,0.00019999,2]
[362397299,1748250640391,-420.0,0.00019999,2]
[362397300,1748250640400,-420.0,0.00019999,2]
[362397301,1748250640410,-420.0,0.00019999,2]
[362397302,1748250640420,-420.0,0.00019999,2]
[362397303,1748250640429,-420.0,0.00019999,2]
[362397304,1748250640439,-1691.71,0.00019999,2]
[362397305,1748250640449,-420.0,0.00019999,2]
[362397306,1748250640459,-1691.71,0.00019999,2]
[362397307,1748250640469,-420.0,0.00019999,2]
[362397308,1748250640479,-1691.71,0.00019999,2]
[362397309,1748250640489,-313.18,0.00019999,2]
[362397310,1748250640498,-1691.71,0.00019999,2]
[362397311,1748250640508,-1691.71,0.00019999,2]
[362397312,1748250640518,-1691.71,0.00019999,2]
[362397313,1748250640527,-1691.71,0.00019999,2]
[362397314,1748250640536,-1691.71,0.00019999,2]
[362397315,1748250640546,-420.0,0.00019999,2]
[362397316,1748250640557,-1691.71,0.00019999,2]
[362397317,1748250640568,-420.0,0.00019999,2]
[362397318,1748250640578,-1691.71,0.00019999,2]
[362397319,1748250640588,-1691.71,0.00019999,2]
[362397320,1748250640598,-1691.71,0.00019999,2]
[362397321,1748250640607,-1691.71,0.00019999,2]
[362397322,1748250640617,-1691.71,0.00019999,2]
[362397323,1748250640626,-1691.71,0.00019999,2]
[362397324,1748250640636,-422.79581526,0.00019999,2]
[362397325,1748250640645,-1691.71,0.00019999,2]
[362397326,1748250640655,-1691.71,0.00019999,2]
[362397327,1748250640664,-1691.71,0.00019999,2]
[362397328,1748250640673,-1691.71,0.00019999,2]
[362397329,1748250640682,-1691.71,0.00019999,2]
[362397330,1748250640691,-420.0,0.00019999,2]
[362397331,1748250640701,-1691.71,0.00019999,2]
[362397332,1748250640710,-420.0,0.00019999,2]
[362397333,1748250640720,-1691.71,0.00019999,2]
[362397334,1748250640729,-420.0,0.00019999,2]
[362397335,1748250640739,-1691.71,0.00019999,2]
[362397336,1748250640748,-337.82,0.00019999,2]
[362397337,1748250640757,-1691.85433254,0.00019999,2]
[362397338,1748250640767,-427.49040706,0.00019999,2]
[362397339,1748250640776,-420.0,0.00019999,2]
[362397341,1748250640786,-420.0,0.00019999,2]
[362397343,1748250640795,-393.8,0.00019999,2]
[362397344,1748250640804,-328.31,0.00019999,2]
[362397345,1748250640814,-420.0,0.00019999,2]
[362397346,1748250640823,-420.0,0.00019999,2]
[362397347,1748250640832,-420.0,0.00019999,2]
[362397348,1748250640842,-420.0,0.00019999,2]
[362397350,1748250640851,-377.31,0.00019999,2]
[362397352,1748250640861,-420.0,0.00019999,2]
[362397354,1748250640870,-420.0,0.00019999,2]
[362397355,1748250640880,-314.6,0.00019999,2]
[362397356,1748250640889,-420.0,0.00019999,2]
[362397357,1748250640900,-420.0,0.00019999,2]
[362397358,1748250640910,-465.06,0.00019999,2]
[362397359,1748250640919,-420.0,0.00019999,2]
[362397360,1748250640929,-494.14,0.00019999,2]
[362397361,1748250640940,-430.30213929,0.00019999,2]
[362397362,1748250640950,-420.0,0.00019999,2]
[362397363,1748250640960,-461.25,0.00019999,2]
[362397364,1748250640970,-426.74494289,0.00019999,2]
[362397365,1748250640980,-531.49,0.00019999,2]
[362397366,1748250640991,-420.0,0.00019999,2]
[362397367,1748250641001,-420.0,0.00019999,2]
[362397368,1748250641010,-421.97038739,0.00019999,2]